Workbook

Sheet ORÇAMENTO
A1: <---- NUMERAR SERVIÇOS PARA CPU | E1: Ministério do Desenvolvimento Regional
E2: Companhia de Desenvolvimento dos Vales do São Francisco e do Parnaíba
E3: 1ª Superintendência Regional
B5: OBRA: | C5: PAVIMENTAÇÃO EM BLOQUETE SEXTAVADOS - RUA DA COMUNIDADE OLIVEIRA NO MUNICÍPIO DE LADAINHA / MG | I5: BDI Serviços (%): | L5: ='BDI SERV'!E26 -> 21.55
B6: DATA: | C6: MARÇO/2026 | I6: BDI Diferenciado Serviços (%): | L6: 15
B7: PRAZO DE EXECUÇÃO: 180 DIAS | I7: BDI Fornecimentos (%): | L7: 15
B8: PLANILHA DE ORÇAMENTAÇÃO
B9: ITEM | C9: CÓDIGO | D9: FONTE | E9: DISCRIMINAÇÃO | F9: TIPO | G9: UNID. | H9: QUANT. | I9: VR.UNIT.S/BDI | J9: PR. UNIT.C/BDI | K9: C. TOT.S/BDI | L9: P. TOT.C/BDI
A10: A | B10: 1 | E10: SERVIÇOS PRELIMINARES | K10: =SUM(K11:K16) -> 151816.37 | L10: =SUM(L11:L16) -> 184499.74
A11: 1 | B11: 1.1 | C11: CPU.1 | D11: CODEVASF | E11: MOBILIZAÇÃO E DESMOBILIZAÇÃO | F11: SERV | G11: GL | H11: 1 | I11: =VLOOKUP(A11,'CPU-SERV'!A:K,11,0) -> 11277.06 | J11: =TRUNC(_xlfn.IFS(F11="SERV",I11*(1+$L$5/100),F11="SERV DIF",I11*(1+$L$6/100),F11="FORN",I11*(1+$L$7/100)),2) -> 13707.26 | K11: =TRUNC(H11*I11,2) -> 11277.06 | L11: =TRUNC(H11*J11,2) -> 13707.26
A12: 2 | B12: 1.2 | C12: CPU.2 | D12: CODEVASF | E12: ADMINISTRAÇÃO LOCAL | F12: SERV | G12: GL | H12: 1 | I12: =VLOOKUP(A12,'CPU-SERV'!A:K,11,0) -> 83819.3 | J12: =TRUNC(_xlfn.IFS(F12="SERV",I12*(1+$L$5/100),F12="SERV DIF",I12*(1+$L$6/100),F12="FORN",I12*(1+$L$7/100)),2) -> 101882.35 | K12: =TRUNC(H12*I12,2) -> 83819.3 | L12: =TRUNC(H12*J12,2) -> 101882.35
A13: 3 | B13: 1.3 | C13: CPU.3 | D13: CODEVASF | E13: CANTEIRO DE OBRAS | F13: SERV | G13: GL | H13: 1 | I13: =VLOOKUP(A13,'CPU-SERV'!A:K,11,0) -> 16481.15 | J13: =TRUNC(_xlfn.IFS(F13="SERV",I13*(1+$L$5/100),F13="SERV DIF",I13*(1+$L$6/100),F13="FORN",I13*(1+$L$7/100)),2) -> 20032.83 | K13: 16481.15 | L13: 20032.83
A14: 4 | B14: 1.4 | C14: 103689 | D14: SINAPI | E14: PLACA DE OBRA EM CHAPA DE AÇO GALVANIZADO | F14: SERV | G14: M2 | H14: 2 | I14: =VLOOKUP(A14,'CPU-SERV'!A:K,11,0) -> 428.87 | J14: =TRUNC(_xlfn.IFS(F14="SERV",I14*(1+$L$5/100),F14="SERV DIF",I14*(1+$L$6/100),F14="FORN",I14*(1+$L$7/100)),2) -> 521.29 | K14: 857.74 | L14: 1042.58
A15: 5 | B15: 1.5 | C15: CPU.4 | D15: CODEVASF | E15: VEÍCULO PARA A FISCALIZAÇÃO, MÁXIMO 02 ANOS DE USO OU 50.000KM, PREFERENCIALMENTE NA COR BRANCA, COM IDENTIFICAÇÃO CONFORME ESPECIFICAÇÕES DA CODEVASF, INCLUSIVE COMBUSTÍVEL, MANUTENÇÃO, SEGURO E IMPOSTOS - CONFORME ESPECIFICAÇÕES | F15: SERV | G15: MÊS | H15: 8 | I15: =VLOOKUP(A15,'CPU-SERV'!A:K,11,0) -> 4346.64 | J15: =TRUNC(_xlfn.IFS(F15="SERV",I15*(1+$L$5/100),F15="SERV DIF",I15*(1+$L$6/100),F15="FORN",I15*(1+$L$7/100)),2) -> 5283.34 | K15: =TRUNC(H15*I15,2) -> 34773.12 | L15: =TRUNC(H15*J15,2) -> 42266.72
A16: 6 | B16: 1.6 | C16: 78472 | D16: SINAPI | E16: SERVIÇOS TOPOGRÁFICOS PARA PAVIMENTAÇÃO, INCLUSIVE LEVANTAMENTO PLANIALTIMÉTRICO CADASTRAL, GERAÇÃO DE NOTAS DE SERVIÇO, SEÇÕES TRANSVERSAIS E GREIDE, ESTAQUEAMENTO E ACOMPANHAMENTO EXECUTIVO | F16: SERV | G16: M2 | H16: 9600 | I16: =VLOOKUP(A16,'CPU-SERV'!A:K,11,0) -> 0.48 | J16: =TRUNC(_xlfn.IFS(F16="SERV",I16*(1+$L$5/100),F16="SERV DIF",I16*(1+$L$6/100),F16="FORN",I16*(1+$L$7/100)),2) -> 0.58 | K16: 4608 | L16: 5568
A17: B | B17: 2 | E17: TERRAPLANAGEM E PAVIMENTAÇÃO | K17: =SUM(K18:K21) -> 664296.1 | L17: =SUM(L18:L21) -> 807368.9
A18: 7 | B18: 2.1 | C18: 5502114 | D18: SICRO | E18: ESCAVAÇÃO, CARGA E TRANSPORTE DE MATERIAL DE 1ª CATEGORIA - DMT 1.000 A 1.200M, CAMINHO DE SERVIÇO EM REVESTIMENTO PRIMÁRIO | F18: SERV | G18: M3 | H18: 2850 | I18: =VLOOKUP(A18,'CPU-SERV'!A:K,11,0) -> 8.65 | J18: =TRUNC(_xlfn.IFS(F18="SERV",I18*(1+$L$5/100),F18="SERV DIF",I18*(1+$L$6/100),F18="FORN",I18*(1+$L$7/100)),2) -> 10.51 | K18: =TRUNC(H18*I18,2) -> 24652.5 | L18: =TRUNC(H18*J18,2) -> 29953.5
A19: 8 | B19: 2.2 | C19: 4011209 | D19: SICRO | E19: REGULARIZAÇÃO DO SUBLEITO - 100% PROCTOR INTERMEDIÁRIO | F19: SERV | G19: M2 | H19: 9600 | I19: =VLOOKUP(A19,'CPU-SERV'!A:K,11,0) -> 1.88 | J19: =TRUNC(_xlfn.IFS(F19="SERV",I19*(1+$L$5/100),F19="SERV DIF",I19*(1+$L$6/100),F19="FORN",I19*(1+$L$7/100)),2) -> 2.28 | K19: 18048 | L19: 21888
A20: 9 | B20: 2.3 | C20: 4011219 | D20: SICRO | E20: BASE DE SOLO ESTABILIZADA GRANULOMETRICAMENTE SEM MISTURA COM MATERIAL DE JAZIDA - 100% PROCTOR MODIFICADO | F20: SERV | G20: M3 | H20: 1450 | I20: =VLOOKUP(A20,'CPU-SERV'!A:K,11,0) -> 17.2 | J20: =TRUNC(_xlfn.IFS(F20="SERV",I20*(1+$L$5/100),F20="SERV DIF",I20*(1+$L$6/100),F20="FORN",I20*(1+$L$7/100)),2) -> 20.9 | K20: =TRUNC(H20*I20,2) -> 24940 | L20: =TRUNC(H20*J20,2) -> 30305
A21: 10 | B21: 2.4 | C21: 92394 | D21: SINAPI | E21: EXECUÇÃO DE PAVIMENTO EM PISO INTERTRAVADO, COM BLOCO SEXTAVADO DE CONCRETO DE 25 X 25 CM, ESPESSURA 8 CM | F21: SERV | G21: M2 | H21: 8520 | I21: =VLOOKUP(A21,'CPU-SERV'!A:K,11,0) -> 70.03 | J21: =TRUNC(_xlfn.IFS(F21="SERV",I21*(1+$L$5/100),F21="SERV DIF",I21*(1+$L$6/100),F21="FORN",I21*(1+$L$7/100)),2) -> 85.12 | K21: 596655.6 | L21: 725222.4
A22: C | B22: 3 | E22: TRANSPORTE DE MATERIAIS | K22: =SUM(K23:K26) -> 175265 | L22: =SUM(L23:L26) -> 211410
A23: 15 | B23: 3.1 | C23: 5915321 | D23: SICRO | E23: TRANSPORTE COM CAMINHÃO BASCULANTE, EM VIA URBANA PAVIMENTADA | F23: SERV | G23: TXKM | H23: 102000 | I23: =VLOOKUP(A23,'CPU-SERV'!A:K,11,0) -> 0.68 | J23: =TRUNC(_xlfn.IFS(F23="SERV",I23*(1+$L$5/100),F23="SERV DIF",I23*(1+$L$6/100),F23="FORN",I23*(1+$L$7/100)),2) -> 0.82 | K23: =TRUNC(H23*I23,2) -> 69360 | L23: =TRUNC(H23*J23,2) -> 83640
A24: 16 | B24: 3.2 | C24: 5915320 | D24: SICRO | E24: TRANSPORTE COM CAMINHÃO BASCULANTE, EM VIA COM REVESTIMENTO PRIMÁRIO | F24: SERV | G24: TXKM | H24: 24000 | I24: =VLOOKUP(A24,'CPU-SERV'!A:K,11,0) -> 0.75 | J24: =TRUNC(_xlfn.IFS(F24="SERV",I24*(1+$L$5/100),F24="SERV DIF",I24*(1+$L$6/100),F24="FORN",I24*(1+$L$7/100)),2) -> 0.91 | K24: 18000 | L24: 21840
A25: 17 | B25: 3.3 | C25: 5914434 | D25: SICRO | E25: TRANSPORTE COM CAMINHÃO CARROCERIA, EM VIA URBANA PAVIMENTADA | F25: SERV | G25: TXKM | H25: 98000 | I25: =VLOOKUP(A25,'CPU-SERV'!A:K,11,0) -> 0.83 | J25: =TRUNC(_xlfn.IFS(F25="SERV",I25*(1+$L$5/100),F25="SERV DIF",I25*(1+$L$6/100),F25="FORN",I25*(1+$L$7/100)),2) -> 1 | K25: 81340 | L25: 98000
A26: 18 | B26: 3.4 | C26: 5914419 | D26: SICRO | E26: TRANSPORTE COM CAMINHÃO CARROCERIA, EM VIA COM REVESTIMENTO PRIMÁRIO | F26: SERV | G26: TXKM | H26: 6500 | I26: =VLOOKUP(A26,'CPU-SERV'!A:K,11,0) -> 1.01 | J26: =TRUNC(_xlfn.IFS(F26="SERV",I26*(1+$L$5/100),F26="SERV DIF",I26*(1+$L$6/100),F26="FORN",I26*(1+$L$7/100)),2) -> 1.22 | K26: 6565 | L26: 7930
A27: D | B27: 4 | E27: DRENAGEM E OBRAS COMPLEMENTARES | K27: =SUM(K28:K31) -> 110015.36 | L27: =SUM(L28:L31) -> 133721.35
A28: 20 | B28: 4.1 | C28: 94267 | D28: SINAPI | E28: GUIA (MEIO-FIO) E SARJETA CONJUGADOS DE CONCRETO, MOLDADA IN LOCO COM EXTRUSORA, 45 CM BASE (15 CM BASE DA GUIA + 30 CM SARJETA) X 22 CM ALTURA | F28: SERV | G28: M | H28: 2400 | I28: =VLOOKUP(A28,'CPU-SERV'!A:K,11,0) -> 43.76 | J28: =TRUNC(_xlfn.IFS(F28="SERV",I28*(1+$L$5/100),F28="SERV DIF",I28*(1+$L$6/100),F28="FORN",I28*(1+$L$7/100)),2) -> 53.19 | K28: =TRUNC(H28*I28,2) -> 105024 | L28: =TRUNC(H28*J28,2) -> 127656
A29: 22 | B29: 4.2 | C29: 94263 | D29: SINAPI | E29: GUIA (MEIO-FIO) CONCRETO, MOLDADA IN LOCO EM TRECHO RETO (PARA TRAVAMENTO), 13 CM BASE X 22 CM ALTURA | F29: SERV | G29: M | H29: 180 | I29: =VLOOKUP(A29,'CPU-SERV'!A:K,11,0) -> 20.97 | J29: =TRUNC(_xlfn.IFS(F29="SERV",I29*(1+$L$5/100),F29="SERV DIF",I29*(1+$L$6/100),F29="FORN",I29*(1+$L$7/100)),2) -> 25.48 | K29: 3774.6 | L29: 4586.4
A30: 46 | B30: 4.2 | C30: 5213440+ 5213863a | D30: SICRO | E30: FORNECIMENTO E INSTALAÇÃO DE PLACA DE SINALIZAÇÃO VIÁRIA - REGULAMENTAÇÃO 0,60MX0,60M, SUPORTE INCLUSO | F30: SERV | G30: UNID. | H30: 2 | I30: =VLOOKUP(A30,'CPU-SERV'!A:K,11,0) -> 543.23 | J30: =TRUNC(_xlfn.IFS(F30="SERV",I30*(1+$L$5/100),F30="SERV DIF",I30*(1+$L$6/100),F30="FORN",I30*(1+$L$7/100)),2) -> 660.29 | K30: 1086.46 | L30: 1320.58
A31: 47 | B31: 4.3 | C31: CPU.5 | D31: CODEVASF | E31: FORNECIMENTO E INSTALAÇÃO DE PLACA DE IDENTIFICAÇÃO DE LOGRADOURO, SUPORTE EXISTENTE - CONFORME PROJETO | F31: SERV | G31: UNID. | H31: 1 | I31: =VLOOKUP(A31,'CPU-SERV'!A:K,11,0) -> 130.3 | J31: =TRUNC(_xlfn.IFS(F31="SERV",I31*(1+$L$5/100),F31="SERV DIF",I31*(1+$L$6/100),F31="FORN",I31*(1+$L$7/100)),2) -> 158.37 | K31: 130.3 | L31: 158.37
B32: TOTAL GERAL DA OBRA COM BDI | K32: =SUM(K10,K17,K22,K27) -> 1101392.83 | L32: =SUM(L10,L17,L22,L27)+0.01 -> 1337000

Sheet CPU-SERV
A1: 1 | B1: 1ª/GRD | K1: =J37 -> 11277.06 | L1: Minas Gerais
B2: OBRA: | C2: PAVIMENTAÇÃO EM BLOQUETE SEXTAVADOS - RUA DA COMUNIDADE OLIVEIRA NO MUNICÍPIO DE LADAINHA / MG | L2: MARÇO/2026
B3: Custo Unitário de Referência | E3: Minas Gerais
E4: MARÇO/2026 | H4: Produção da equipe | I4: 0.5 | J4: =VLOOKUP(A1,ORÇAMENTO!$A$10:$L$59,7,1) -> GL
B5: CPU.1 | C5: MOBILIZAÇÃO E DESMOBILIZAÇÃO | I5: Valores em reais (R$)
B6: A - EQUIPAMENTOS | D6: Quantidade | E6: Utilização | G6: Custo Horário | J6: Custo
E7: Operativa | F7: Improdutiva | G7: Produtivo | H7: Improdutivo | J7: Horário Total
B8: E9687 | C8: Caminhão carroceria com capacidade de 5 t - 120 kW | D8: 8 | E8: 0.6 | F8: 0.4 | G8: 172.4406 | H8: 68.6393 | J8: =D8*(E8*G8+F8*H8) -> 1047.36064
B9: E9575 | C9: Caminhão basculante com caçamba estanque com capacidade de 14 m³ - 210 kW | D9: 8 | E9: 1 | F9: 0 | G9: 323.1915 | H9: 97.6112 | J9: =D9*(E9*G9+F9*H9) -> 2585.532
H10: Custo horário total de equipamentos | J10: =SUM(J8:J9) -> 3632.89264
B11: B - MÃO DE OBRA | D11: Quantidade | E11: Unidade | G11: Custo Horário | H11: Custo Horário Total
B12: P9824 | C12: Servente | D12: 8 | E12: h | G12: 21.6849 | J12: =D12*G12 -> 173.4792
B13: - | C13: - | E13: - | G13: 0 | J13: =D13*G13 -> 0
D14: Custo horário total de mão de obra | J14: =SUM(J12:J13) -> 173.4792
D15: Custo horário total de execução | J15: =J10+J14 -> 3806.37184
D16: Custo unitário de execução | J16: =J15/I4 -> 7612.74368
H17: Custo do FIC | J17: 0
H18: Custo do FIT | J18: 0
B19: C - MATERIAL | D19: Quantidade | E19: Unidade | G19: Preço Unitário | H19: Custo Unitário
B20: - | C20: - | E20: - | G20: 0 | J20: =D20*G20 -> 0
B21: - | C21: - | E21: - | G21: 0 | J21: =D21*G21 -> 0
D22: Custo unitário total de material | J22: =SUM(J20:J21) -> 0
B23: D - ATIVIDADES AUXILIARES | D23: Quantidade | E23: Unidade | G23: Custo Unitário | H23: Custo Unitário
B24: 5914640 | C24: Transporte com cavalo mecânico com semirreboque com capacidade de 32 t - rodovia pavimentada | D24: 6210.708 | E24: tkm | G24: 0.59 | J24: =D24*G24 -> 3664.31772
B25: - | C25: - | D25: 0 | E25: - | G25: 0 | J25: =D25*G25 -> 0
D26: Custo total de atividades auxiliares | J26: =SUM(J24:J25) -> 3664.31772
H27: Subtotal | J27: =J16+J22+J26+J17+J18 -> 11277.0614
B28: E - TEMPO FIXO | D28: Código | E28: Quantidade | F28: Unidade | H28: Custo Unitário | I28: Custo Unitário
B29: - | C29: - | D29: - | F29: - | H29: 0 | J29: =ROUNDDOWN(E29*H29,4) -> 0
B30: - | C30: - | D30: - | F30: - | H30: 0 | J30: =ROUNDDOWN(E30*H30,4) -> 0
D31: Custo unitário total de tempo fixo | J31: =SUM(J29:J30) -> 0
B32: F - MOMENTO DE TRANSPORTE | D32: Quantidade | E32: Unidade | F32: DMT | J32: Custo Unitário
F33: LN | G33: RP | H33: P
B34: - | C34: - | E34: tkm
B35: - | C35: - | E35: tkm
D36: Custo unitário total de transporte
F37: Custo unitário direto total | J37: =TRUNC(J27+J31,2) -> 11277.06
B38: Obs.
A40: 2 | B40: 1ª/GRD | K40: =J81 -> 83819.3
B41: OBRA: | C41: PAVIMENTAÇÃO EM BLOQUETE SEXTAVADOS - RUA DA COMUNIDADE OLIVEIRA NO MUNICÍPIO DE LADAINHA / MG
B42: Custo Unitário de Referência | E42: Minas Gerais
E43: MARÇO/2026 | H43: Produção da equipe | I43: =1/5 -> 0.2 | J43: =VLOOKUP(A40,ORÇAMENTO!$A$10:$L$59,7,1) -> GL
B44: CPU.2 | C44: ADMINISTRAÇÃO LOCAL | I44: Valores em reais (R$)
B45: A - EQUIPAMENTOS | D45: Quantidade | E45: Utilização | G45: Custo Horário | J45: Custo
E46: Operativa | F46: Improdutiva | G46: Produtivo | H46: Improdutivo | J46: Horário Total
B47: - | C47: - | G47: 0 | H47: 0 | J47: =D47*(E47*G47+F47*H47) -> 0
B48: - | C48: - | G48: 0 | H48: 0 | J48: =D48*(E48*G48+F48*H48) -> 0
H49: Custo horário total de equipamentos | J49: =SUM(J47:J48) -> 0
B50: B - MÃO DE OBRA | D50: Quantidade | E50: Unidade | G50: Custo Horário | H50: Custo Horário Total
B51: P9812 | C51: Engenheiro - mensalista | D51: 0.1681604339 | E51: mês | G51: 26982.6132 | J51: =D51*G51 -> 4537.407944
B52: P9840 | C52: Encarregado geral - mensalista | D52: 0.5 | E52: mês | G52: 13706.4417 | J52: 6853.22085
B53: P9876 | C53: Técnico de segurança do trabalho - mensalista | D53: 0.25 | E53: mês | G53: 8251.9033 | J53: 2062.975825
B54: P9858 | C54: Laboratorista - mensalista | D54: 0.25 | E54: mês | G54: 6549.5189 | J54: 1637.379725
B55: P9806 | C55: Auxiliar administrativo - mensalista | D55: 0.25 | E55: mês | G55: 4706.5969 | J55: 1176.649225
D56: Custo horário total de mão de obra | J56: =SUM(J51:J55) -> 16267.63357
D57: Custo horário total de execução | J57: =J49+J56 -> 16267.63357
D58: Custo unitário de execução | J58: =J57/I43 -> 81338.16784
H59: Custo do FIC | J59: -
H60: Custo do FIT | J60: -
B61: C - MATERIAL | D61: Quantidade | E61: Unidade | G61: Preço Unitário | H61: Custo Unitário
B62: - | C62: - | E62: - | G62: 0 | J62: =D62*G62 -> 0
B63: - | C63: - | E63: - | G63: 0 | J63: 0
D64: Custo unitário total de material | J64: =SUM(J62:J63) -> 0
B65: D - ATIVIDADES AUXILIARES | D65: Quantidade | E65: Unidade | G65: Custo Unitário | H65: Custo Unitário
B66: 14250 | C66: Energia Elétrica | D66: 240 | E66: kwh | G66: 1.12 | J66: =D66*G66 -> 268.8
B67: 44480 | C67: Tarifa A - Água e Esgoto | D67: 18 | E67: m³ | G67: 21.19 | J67: =D67*G67 -> 381.42
B68: 5212560 | C68: Placa de advertência para sinalização de obras montada em suporte metálico móvel, lado 1,00 m - utilização de 600 ciclos - fornecimento, 01 implantação e 01 retirada diária | D68: 352 | E68: un.dia | G68: 4.01 | J68: =D68*G68 -> 1411.52
B69: Cotação | C69: Telefone | D69: 6 | E69: mês | G69: 69.9 | J69: =D69*G69 -> 419.4
D70: Custo total de atividades auxiliares | J70: =SUM(J66:J69) -> 2481.14
H71: Subtotal | J71: =J58+J64+J70 -> 83819.30784
B72: E - TEMPO FIXO | D72: Código | E72: Quantidade | F72: Unidade | H72: Custo Unitário | I72: Custo Unitário
B73: - | C73: - | D73: - | F73: - | H73: 0 | J73: =ROUNDDOWN(E73*H73,4) -> 0
B74: - | C74: - | D74: - | F74: - | H74: 0 | J74: =ROUNDDOWN(E74*H74,4) -> 0
D75: Custo unitário total de tempo fixo | J75: =SUM(J73:J74) -> 0
B76: F - MOMENTO DE TRANSPORTE | D76: Quantidade | E76: Unidade | F76: DMT | J76: Custo Unitário
F77: LN | G77: RP | H77: P
B78: - | C78: - | E78: tkm
B79: - | C79: - | E79: tkm
D80: Custo unitário total de transporte
F81: Custo unitário direto total | J81: =TRUNC(J71+J75,2) -> 83819.3
B82: Obs.
A84: 3 | B84: 1ª/GRD | K84: =J120 -> 16481.15
B85: OBRA: | C85: PAVIMENTAÇÃO EM BLOQUETE SEXTAVADOS - RUA DA COMUNIDADE OLIVEIRA NO MUNICÍPIO DE LADAINHA / MG
B86: Custo Unitário de Referência | E86: Minas Gerais
E87: MARÇO/2026 | H87: Produção da equipe | I87: 1 | J87: =VLOOKUP(A84,ORÇAMENTO!$A$10:$L$59,7,1) -> GL
B88: CPU.3 | C88: CANTEIRO DE OBRAS | I88: Valores em reais (R$)
B89: A - EQUIPAMENTOS | D89: Quantidade | E89: Utilização | G89: Custo Horário | J89: Custo
E90: Operativa | F90: Improdutiva | G90: Produtivo | H90: Improdutivo | J90: Horário Total
B91: - | C91: - | G91: 0 | H91: 0 | J91: =D91*(E91*G91+F91*H91) -> 0
B92: - | C92: - | G92: 0 | H92: 0 | J92: =D92*(E92*G92+F92*H92) -> 0
H93: Custo horário total de equipamentos | J93: =SUM(J91:J92) -> 0
B94: B - MÃO DE OBRA | D94: Quantidade | E94: Unidade | G94: Custo Horário | H94: Custo Horário Total
B95: P9824 | C95: Servente | D95: 8 | E95: h | G95: 21.6849 | J95: =D95*G95 -> 173.4792
B96: P9808 | C96: Carpinteiro | D96: 8 | E96: h | G96: 27.6471 | J96: 221.1768
D97: Custo horário total de mão de obra | J97: =SUM(J95:J96) -> 394.656
D98: Custo horário total de execução | J98: =J93+J97 -> 394.656
D99: Custo unitário de execução | J99: =J98/I87 -> 394.656
H100: Custo do FIC | J100: -
H101: Custo do FIT | J101: -
B102: C - MATERIAL | D102: Quantidade | E102: Unidade | G102: Preço Unitário | H102: Custo Unitário
B103: M0053 | C103: Tela plástica em polipropileno na cor laranja para tapume - L = 1,2 m | D103: 100 | E103: m | G103: 1.79 | J103: =D103*G103 -> 179
B104: - | C104: - | D104: 0 | E104: - | G104: 0 | J104: 0
D105: Custo unitário total de material | J105: =SUM(J103:J104) -> 179
B106: D - ATIVIDADES AUXILIARES | D106: Quantidade | E106: Unidade | G106: Custo Unitário | H106: Custo Unitário
B107: 10775 | C107: Locação de container 2,30 X 6,00 m, alt. 2,50 m, com 1 sanitário, para escritório, completo, sem divisórias internas | D107: 7 | E107: mês | G107: 1010 | J107: =D107*G107 -> 7070
B108: 10779 | C108: Locação de container 2,30 X 4,30 m, alt. 2,50 M, p/ sanitário, c/ 5 bacias, 1 lavatório e 4 mictórios | D108: 7 | E108: mês | G108: 1262.5 | J108: =D108*G108 -> 8837.5
D109: Custo total de atividades auxiliares | J109: =SUM(J107:J108) -> 15907.5
H110: Subtotal | J110: =J99+J105+J109 -> 16481.156
B111: E - TEMPO FIXO | D111: Código | E111: Quantidade | F111: Unidade | H111: Custo Unitário | I111: Custo Unitário
B112: - | C112: - | D112: - | F112: - | H112: 0 | J112: =ROUNDDOWN(E112*H112,4) -> 0
B113: - | C113: - | D113: - | F113: - | H113: 0 | J113: =ROUNDDOWN(E113*H113,4) -> 0
D114: Custo unitário total de tempo fixo | J114: =SUM(J112:J113) -> 0
B115: F - MOMENTO DE TRANSPORTE | D115: Quantidade | E115: Unidade | F115: DMT | J115: Custo Unitário
F116: LN | G116: RP | H116: P
B117: - | C117: - | E117: tkm
B118: - | C118: - | E118: tkm
D119: Custo unitário total de transporte
F120: Custo unitário direto total | J120: =TRUNC(J110+J114,2) -> 16481.15
B121: Obs.
A123: 4 | B123: 1ª/GRD | K123: =J161 -> 428.87
B124: OBRA: | C124: PAVIMENTAÇÃO EM BLOQUETE SEXTAVADOS - RUA DA COMUNIDADE OLIVEIRA NO MUNICÍPIO DE LADAINHA / MG
B125: Custo Unitário de Referência | E125: Minas Gerais
E126: MARÇO/2026 | H126: Produção da equipe | I126: 1 | J126: =VLOOKUP(A123,ORÇAMENTO!$A$10:$L$59,7,1) -> M2
B127: 103689 | C127: PLACA DE OBRA EM CHAPA DE AÇO GALVANIZADO | I127: Valores em reais (R$)
B128: A - EQUIPAMENTOS | D128: Quantidade | E128: Utilização | G128: Custo Horário | J128: Custo
E129: Operativa | F129: Improdutiva | G129: Produtivo | H129: Improdutivo | J129: Horário Total
B130: - | C130: - | G130: 0 | H130: 0 | J130: =D130*(E130*G130+F130*H130) -> 0
B131: - | C131: - | G131: 0 | H131: 0 | J131: =D131*(E131*G131+F131*H131) -> 0
H132: Custo horário total de equipamentos | J132: =SUM(J130:J131) -> 0
B133: B - MÃO DE OBRA | D133: Quantidade | E133: Unidade | G133: Custo Horário | H133: Custo Horário Total
B134: P9824 | C134: Servente | D134: 1.1186 | E134: h | G134: 21.6849 | J134: =D134*G134 -> 24.25672914
B135: P9808 | C135: Carpinteiro | D135: 0.3729 | E135: h | G135: 27.6471 | J135: 10.30960359
D136: Custo horário total de mão de obra | J136: =SUM(J134:J135) -> 34.56633273
D137: Custo horário total de execução | J137: =J132+J136 -> 34.56633273
D138: Custo unitário de execução | J138: =J137/I126 -> 34.56633273
H139: Custo do FIC | J139: -
H140: Custo do FIT | J140: -
B141: C - MATERIAL | D141: Quantidade | E141: Unidade | G141: Preço Unitário | H141: Custo Unitário
B142: M1358 | C142: Sarrafo em madeira de terceira - E = 2,5 cm e L = 5 cm | D142: 6.4166 | E142: m | G142: 2.1217 | J142: =D142*G142 -> 13.61410022
B143: M1205 | C143: Prego de ferro | D143: 0.0245 | E143: kg | G143: 15.2544 | J143: 0.3737328
B144: M0998 | C144: Madeira estrutural de eucalipto | D144: 0.022608 | E144: m³ | G144: 3000 | J144: 67.824
B145: 4813 | C145: Placa de obra (para construção civil) em chapa galvanizada *N. 22*, adesivada, de *2,4 X 1,2* m (sem postes para fixação) | D145: 1 | E145: m² | G145: 312.5 | J145: =D145*G145 -> 312.5
D146: Custo unitário total de material | J146: =SUM(J142:J145) -> 394.311833
B147: D - ATIVIDADES AUXILIARES | D147: Quantidade | E147: Unidade | G147: Custo Unitário | H147: Custo Unitário
B148: - | C148: - | D148: 0 | E148: - | G148: 0 | J148: =D148*G148 -> 0
B149: - | C149: - | D149: 0 | E149: - | G149: 0 | J149: 0
D150: Custo total de atividades auxiliares | J150: =SUM(J148:J149) -> 0
H151: Subtotal | J151: =J138+J146+J150 -> 428.8781657
B152: E - TEMPO FIXO | D152: Código | E152: Quantidade | F152: Unidade | H152: Custo Unitário | I152: Custo Unitário
B153: - | C153: - | D153: - | F153: - | H153: 0 | J153: =ROUNDDOWN(E153*H153,4) -> 0
B154: - | C154: - | D154: - | F154: - | H154: 0 | J154: =ROUNDDOWN(E154*H154,4) -> 0
D155: Custo unitário total de tempo fixo | J155: =SUM(J153:J154) -> 0
B156: F - MOMENTO DE TRANSPORTE | D156: Quantidade | E156: Unidade | F156: DMT | J156: Custo Unitário
F157: LN | G157: RP | H157: P
B158: - | C158: - | E158: tkm
B159: - | C159: - | E159: tkm
D160: Custo unitário total de transporte
F161: Custo unitário direto total | J161: =TRUNC(J151+J155,2) -> 428.87
B162: Obs.
A164: 5 | B164: 1ª/GRD | K164: =J208 -> 4346.64
B165: OBRA: | C165: PAVIMENTAÇÃO EM BLOQUETE SEXTAVADOS - RUA DA COMUNIDADE OLIVEIRA NO MUNICÍPIO DE LADAINHA / MG
B166: Custo Unitário de Referência | E166: Minas Gerais
E167: MARÇO/2026 | H167: Produção da equipe | I167: 1 | J167: =VLOOKUP(A164,ORÇAMENTO!$A$10:$L$59,7,1) -> MÊS
B168: CPU.4 | C168: VEÍCULO PARA A FISCALIZAÇÃO, MÁXIMO 02 ANOS DE USO OU 50.000KM, PREFERENCIALMENTE NA COR BRANCA, COM IDENTIFICAÇÃO CONFORME ESPECIFICAÇÕES DA CODEVASF, INCLUSIVE COMBUSTÍVEL, MANUTENÇÃO, SEGURO E IMPOSTOS - CONFORME ESPECIFICAÇÕES | I168: Valores em reais (R$)
B169: A - EQUIPAMENTOS | D169: Quantidade | E169: Utilização | G169: Custo Horário | J169: Custo
E170: Operativa | F170: Improdutiva | G170: Produtivo | H170: Improdutivo | J170: Horário Total
B171: - | C171: - | G171: 0 | H171: 0 | J171: =D171*(E171*G171+F171*H171) -> 0
B172: - | C172: - | G172: 0 | H172: 0 | J172: =D172*(E172*G172+F172*H172) -> 0
H173: Custo horário total de equipamentos | J173: =SUM(J171:J172) -> 0
B174: B - MÃO DE OBRA | D174: Quantidade | E174: Unidade | G174: Custo Horário | H174: Custo Horário Total
B175: - | C175: - | E175: - | G175: 0 | J175: =D175*G175 -> 0
B176: - | C176: - | E176: - | G176: 0 | J176: 0
D177: Custo horário total de mão de obra | J177: =SUM(J175:J176) -> 0
D178: Custo horário total de execução | J178: =J173+J177 -> 0
D179: Custo unitário de execução | J179: =J178/I167 -> 0
H180: Custo do FIC | J180: -
H181: Custo do FIT | J181: -
B182: C - MATERIAL | D182: Quantidade | E182: Unidade | G182: Preço Unitário | H182: Custo Unitário
B183: - | C183: - | E183: - | G183: 0 | J183: =D183*G183 -> 0
B184: - | C184: - | E184: - | G184: 0 | J184: 0
D185: Custo unitário total de material | J185: =SUM(J183:J184) -> 0
B186: D - ATIVIDADES AUXILIARES | D186: Quantidade | E186: Unidade | G186: Custo Unitário | H186: Custo Unitário
B187: - | C187: Depreciação | D187: 1 | E187: vb | G187: 725.9333333 | J187: =D187*G187 -> 725.9333333
B188: - | C188: Oportunidade de Capital | D188: 1 | E188: vb | G188: 544.45 | J188: =D188*G188 -> 544.45
B189: - | C189: Impostos e Licenciamento | D189: 1 | E189: vb | G189: 362.97 | J189: 362.97
B190: - | C190: Seguro Total | D190: 1 | E190: vb | G190: 281.58 | J190: 281.58
B191: - | C191: Combustível | D191: 1 | E191: vb | G191: 1255.71 | J191: 1255.71
B192: - | C192: Manutenções Preventivas | D192: 1 | E192: vb | G192: 254.02 | J192: 254.02
B193: - | C193: Limpeza | D193: 1 | E193: vb | G193: 100 | J193: 100
B194: - | C194: Pneus | D194: 1 | E194: vb | G194: 119.98 | J194: 119.98
B195: - | C195: Peças | D195: 1 | E195: vb | G195: 74.79 | J195: 74.79
B196: - | C196: Manutenção Corretiva (%) | D196: 1 | E196: vb | G196: 627.21 | J196: 627.21
D197: Custo total de atividades auxiliares | J197: =SUM(J187:J196) -> 4346.643333
H198: Subtotal | J198: =J179+J185+J197 -> 4346.643333
B199: E - TEMPO FIXO | D199: Código | E199: Quantidade | F199: Unidade | H199: Custo Unitário | I199: Custo Unitário
B200: - | C200: - | D200: - | F200: - | H200: 0 | J200: =ROUNDDOWN(E200*H200,4) -> 0
B201: - | C201: - | D201: - | F201: - | H201: 0 | J201: =ROUNDDOWN(E201*H201,4) -> 0
D202: Custo unitário total de tempo fixo | J202: =SUM(J200:J201) -> 0
B203: F - MOMENTO DE TRANSPORTE | D203: Quantidade | E203: Unidade | F203: DMT | J203: Custo Unitário
F204: LN | G204: RP | H204: P
... 513 more rows

Sheet AUX-VEIC.
B2: CÁLCULO DO CUSTO POR MÊS DE VEÍCULOS
B3: Veículo: Polo TSI, Onix Turbo, Argo 1.3, HB-20 Turbo | D3: Data: | E3: 2026-01-20
B4: DADOS ELEMENTARES DO VEÍCULO
B5: Dados Básicos | C5: Preço (R$) | D5: Quantidade | E5: Vida Útil
B6: Quilometragem média mensal | D6: 3000
B7: Valor de Aquisição (VA) | C7: 108890
B8: Taxa de Juros (i)% | D8: 15
B9: IPVA e Seguro Obrigatório (4%) | C9: 4355.6
B10: Lavagem | C10: 50 | D10: 2
B11: Pneus | C11: 499.9 | D11: 4 | E11: 50000
B12: Combustível | C12: 5.86 | D12: 14
B13: Óleo Lubrificante + Filtros (revisão) | C13: 846.744 | D13: 1 | E13: 10000
B14: Seguro Total Anual | C14: 3378.94
B15: Jogo de Amortecedores | C15: 1246.5 | E15: 50000
B16: Coeficiente de Manutenção | D16: 4.8e-06
B17: Motorista | C17: 3038.274018 | D17: 1
B18: CÁLCULO DO CUSTO POR MÊS
B19: DEPRECIAÇÃO | C19: D = (VA-0,60xVA) / 12 x 5 | E19: 725.9333333
B20: JUROS | C20: J = (VA-0,60xVA) x i / 12 | E20: 544.45
B21: LICENCIAMENTO | C21: L = (IPVA=SEG.OBRIG.)/12 | E21: 362.97
B22: SEGURO TOTAL | C22: ST = SEGURO ANUAL/12 | E22: 281.58
B23: COMBUSTÍVEL | C23: OD = (Comb./Consu)x Km.mês | E23: 1255.71
B24: ÓLEO LUBRIFICANTE | C24: OL = ((Ol. X Quant)/Vida Útil)xKm.mês) | E24: 254.02
B25: LAVAGEM | C25: LL = Preço Lavagem x Quantidade | E25: 100
B26: PNEUS | C26: P = ((P. PneusxQuant)/Vida Útil)xkm.mês) | E26: 119.98
B27: AMORTECEDORES | C27: AM = (P. Amort/Vida Útil)xkm.mês | E27: 74.79
B28: MANUTENÇÃO | C28: M = (VA-VPxK)xkm.mês | E28: 627.21
B29: MOTORISTA | C29: MOT = SALÁRIO+LEIS SOCIAIS | E29: 5276.87
B30: CUSTO POR MÊS | C30: SEM MOTORISTA | E30: 4346.643333
C31: COM MOTORISTA | E31: 9623.513333

Sheet BDI SERV
B1: DETALHAMENTO DO BDI - SERVIÇOS
B4: Item | C4: Descrição dos Serviços | D4: % - PV | E4: % - CD
B6: 1 | C6: ADMINISTRAÇÃO CENTRAL | E6: =SUM(E7:E9) -> 4.01
B7: 1.1 | C7: ESCRITÓRIO CENTRAL | E7: 4.01
B8: 1.2 | C8: VIAGENS
B9: 1.3 | C9: OUTROS
B11: 2 | C11: IMPOSTOS E TAXAS | D11: =SUM(D12:D15) -> 5.7 | E11: =SUM(E12:E15) -> 0
B12: 2.1 | C12: ISS - Proposta | D12: =D34*100 -> 2.05
B13: 2.2 | C13: PIS | D13: 0.65
B14: 2.3 | C14: Cofins | D14: 3
B15: 2.4 | C15: Contribuição Previdenciaria (CPRB)
B17: 3 | C17: TAXA DE RISCO | E17: =SUM(E18:E20) -> 0.96
B18: 3.1 | C18: SEGURO | E18: 0.2
B19: 3.2 | C19: RISCO | E19: 0.56
B20: 3.3 | C20: GARANTIA | E20: 0.2
B22: 4 | C22: DESPESAS FINANCEIRAS | E22: 1.11
B24: 5 | C24: LUCRO | E24: 8
B26: BDI APRESENTADO: | E26: 21.55
C28: Legislação Municipal: | D28: Lei Municipal N° 17
C29: Município: | D29: Ladainha - MG
C30: Alíquota ISSQN: | D30: 0.05 | E30: Município
C31: Base de Cálculo: | D31: Dedução - Material
C32: Valor Serviço: | D32: 1101392.83
C33: Dedução - Material (estimado): | D33: 650000 | E33: =D33/D32 -> 0.5901618226
C34: ISSQN BDI: | D34: =IF(D32="",0,ROUND(IF(D31=D49,((1-(D33/D32))*D30),D30*D31),4)) -> 0.0205 | E34: (*)
A36: Acórdão nº 2.622/2013 - TCU Plenário
A37: BDI = ARRED((((((1+(AC+TR)/100)*(1+DF/100)*(1+L/100))/(1-IMP/100))-1)*100);2)
B39: (*) É obrigação da licitante a verificação da Legislação Tributária vigente no município, bem como o cálculo dos valores totais de serviços e materiais estimados, para apresentação de sua proposta.
C41: Forma de Cálculo do BDI: | D41: BDI - Acórdão nº 2.622/2013 - TCU
C43: BDI - Digitado | D43: =ROUND(E6+E11+E17+E22+E24,2) -> 14.08
C44: BDI - Calculado | D44: =ROUND((((1+(E6/100+E22/100+E17/100))/(1-(D11/100+E24/100)))-1)*100,2) -> 22.92
C45: BDI - Acórdão nº 2.622/2013 - TCU | D45: =ROUND((((((1+(E6+E17)/100)*(1+E22/100)*(1+E24/100))/(1-D11/100))-1)*100),2) -> 21.55
D49: Dedução - Material | E49: Município
D50: 0.1 | E50: Simples Nacional
D51: 0.2 | E51: Municípios Indefinidos
D52: 0.3
D53: 0.4
D54: 0.5
D55: 0.6
D56: 0.7
D57: 0.8
D58: 0.9
D59: 1
D60: =E31 -> 0

Sheet CRONOGRAMA
B1: CRONOGRAMA FÍSICO-FINANCEIRO
B2: OBRA: | C2: PAVIMENTAÇÃO EM BLOQUETE SEXTAVADOS - RUA DA COMUNIDADE OLIVEIRA NO MUNICÍPIO DE LADAINHA / MG | F2: VALOR: | G2: 1337000
F3: PRAZO: | G3: 180 DIAS
B5: ITEM | C5: ETAPAS/DESCRIÇAO | D5: FISICO/ FINANCEIRO | E5: TOTAL ETAPAS | F5: MÊS 1 | G5: MÊS 2 | H5: MÊS 3 | I5: MÊS 4 | J5: MÊS 5 | K5: MÊS 6 | L5: TOTAL
A6: A | B6: 1 | C6: SERVIÇOS PRELIMINARES | D6: FISICO | E6: 0.138 | F6: 0.2 | G6: 0.2 | H6: 0.15 | I6: 0.15 | J6: 0.15 | K6: 0.15 | L6: 1
D7: FINANCEIRO | E7: 184499.74 | F7: 36899.95 | G7: 36899.95 | H7: 27674.96 | I7: 27674.96 | J7: 27674.96 | K7: 27674.96 | L7: 184499.74
A8: B | B8: 2 | C8: TERRAPLANAGEM E PAVIMENTAÇÃO | D8: FISICO | E8: 0.6039 | F8: 0.2 | G8: 0.2 | H8: 0.15 | I8: 0.15 | J8: 0.15 | K8: 0.15 | L8: 1
D9: FINANCEIRO | E9: 807368.9 | F9: 161473.78 | G9: 161473.78 | H9: 121105.34 | I9: 121105.34 | J9: 121105.34 | K9: 121105.34 | L9: 807368.92
A10: C | B10: 3 | C10: TRANSPORTE DE MATERIAIS | D10: FISICO | E10: 0.1581 | F10: 0.15 | G10: 0.15 | H10: 0.2 | I10: 0.2 | J10: 0.15 | K10: 0.15 | L10: 1
D11: FINANCEIRO | E11: 211410 | F11: 31711.5 | G11: 31711.5 | H11: 42282 | I11: 42282 | J11: 31711.5 | K11: 31711.5 | L11: 211410
A12: D | B12: 4 | C12: DRENAGEM E OBRAS COMPLEMENTARES | D12: FISICO | E12: 0.1 | F12: 0.1 | G12: 0.15 | H12: 0.2 | I12: 0.2 | J12: 0.2 | K12: 0.15 | L12: 1
D13: FINANCEIRO | E13: 133721.35 | F13: 13372.14 | G13: 20058.2 | H13: 26744.27 | I13: 26744.27 | J13: 26744.27 | K13: 20058.2 | L13: 133721.35
B14: TOTAL | D14: FISICO | E14: 0.5320922777 | F14: 0.1820922751 | G14: 0.187093068 | H14: 0.1629069347 | I14: 0.1629069347 | J14: 0.1550008015 | K14: 0.1500000011 | L14: 1.000000015
D15: FINANCEIRO | E15: 1336999.99 | F15: 243457.37 | G15: 250143.43 | H15: 217806.57 | I15: 217806.57 | J15: 207236.07 | K15: 200550 | L15: 1337000.01
B17: OBSERVAÇÕES:
